[Event "*** SCC Grand Prix: Titled Tuesday Blitz"]
[Site "Chess.com"]
[Date "2020.09.08"]
[Round "4"]
[White "romulocardoso"]
[Black "eCztery"]
[Result "0-1"]
[WhiteElo "2034"]
[BlackElo "2313"]
[TimeControl "180+1"]
[EndTime "10:38:58 PDT"]
[Termination "eCztery won by checkmate"]

1. e4 {[%clk 0:03:00.9]} 1... c5 {[%clk 0:02:58]} 2. Nf3 {[%clk 0:03:00.4]} 2...
Nc6 {[%clk 0:02:50.3]} 3. d4 {[%clk 0:03:00.8]} 3... cxd4 {[%clk 0:02:50]} 4.
Nxd4 {[%clk 0:03:01.7]} 4... g6 {[%clk 0:02:50.6]} 5. Nc3 {[%clk 0:03:02.1]}
5... Bg7 {[%clk 0:02:50.5]} 6. Be3 {[%clk 0:03:02.5]} 6... Nf6 {[%clk
0:02:50.6]} 7. f3 {[%clk 0:03:02.7]} 7... O-O {[%clk 0:02:49.9]} 8. Qd2 {[%clk
0:03:03]} 8... d5 {[%clk 0:02:49.5]} 9. O-O-O {[%clk 0:03:02.1]} 9... dxe4
{[%clk 0:02:29.8]} 10. Kb1 {[%clk 0:02:51.6]} 10... Nxd4 {[%clk 0:02:17.9]} 11.
Bxd4 {[%clk 0:02:52.5]} 11... exf3 {[%clk 0:02:13.7]} 12. gxf3 {[%clk
0:02:53.4]} 12... Be6 {[%clk 0:02:11.9]} 13. h4 {[%clk 0:02:51.3]} 13... Qa5
{[%clk 0:02:01.9]} 14. h5 {[%clk 0:02:39.4]} 14... Rac8 {[%clk 0:01:38.7]} 15.
hxg6 {[%clk 0:02:34.5]} 15... fxg6 {[%clk 0:01:31.7]} 16. Qh2 {[%clk 0:02:34.3]}
16... Rxc3 {[%clk 0:01:13.9]} 17. Bxc3 {[%clk 0:02:24.4]} 17... Qxa2+ {[%clk
0:01:06.1]} 18. Kc1 {[%clk 0:02:25.3]} 18... Nh5 {[%clk 0:00:37.9]} 19. Bxg7
{[%clk 0:02:17.8]} 19... Kxg7 {[%clk 0:00:38.8]} 20. Qe5+ {[%clk 0:02:17.6]}
20... Rf6 {[%clk 0:00:35.8]} 21. Bd3 {[%clk 0:02:08.2]} 21... Nf4 {[%clk
0:00:35.2]} 22. Rh4 {[%clk 0:01:47]} 22... Nxd3+ {[%clk 0:00:32.6]} 23. Rxd3
{[%clk 0:01:47.9]} 23... Qa1+ {[%clk 0:00:29.4]} 24. Kd2 {[%clk 0:01:47.6]}
24... Qf1 {[%clk 0:00:29.8]} 25. Rd7 {[%clk 0:01:34]} 25... Qf2+ {[%clk
0:00:24.4]} 26. Kc1 {[%clk 0:01:33.1]} 26... Qxh4 {[%clk 0:00:19.1]} 27. Rxe7+
{[%clk 0:01:33.2]} 27... Bf7 {[%clk 0:00:19.6]} 28. Rxb7 {[%clk 0:01:29.5]}
28... Qf4+ {[%clk 0:00:19.5]} 29. Qxf4 {[%clk 0:01:28.4]} 29... Rxf4 {[%clk
0:00:20.4]} 30. Rxa7 {[%clk 0:01:28.7]} 30... h5 {[%clk 0:00:20.9]} 31. b4
{[%clk 0:01:27.4]} 31... h4 {[%clk 0:00:21.4]} 32. b5 {[%clk 0:01:27.6]} 32...
h3 {[%clk 0:00:21.6]} 33. b6 {[%clk 0:01:28.5]} 33... h2 {[%clk 0:00:22]} 34. b7
{[%clk 0:01:29.3]} 34... Rb4 {[%clk 0:00:20.8]} 35. c3 {[%clk 0:01:26.7]} 35...
Rb6 {[%clk 0:00:20.1]} 36. Kd2 {[%clk 0:01:23.9]} 36... h1=Q {[%clk 0:00:21]}
37. Kd3 {[%clk 0:01:23.7]} 37... Qxf3+ {[%clk 0:00:20.3]} 38. Kd4 {[%clk
0:01:23.9]} 38... Rxb7 {[%clk 0:00:21.2]} 39. Kc5 {[%clk 0:01:24.8]} 39... Rxa7
{[%clk 0:00:21]} 40. c4 {[%clk 0:01:25.5]} 40... Qf5+ {[%clk 0:00:19.7]} 41. Kb4
{[%clk 0:01:26.4]} 41... Rb7+ {[%clk 0:00:20]} 42. Kc3 {[%clk 0:01:26.4]} 42...
Qf3+ {[%clk 0:00:20.1]} 43. Kd4 {[%clk 0:01:27.3]} 43... Qf4+ {[%clk 0:00:17.9]}
44. Kc5 {[%clk 0:01:28.2]} 44... Rc7+ {[%clk 0:00:17.8]} 45. Kb6 {[%clk
0:01:28.1]} 45... Qd6+ {[%clk 0:00:17.7]} 46. Ka5 {[%clk 0:01:28.5]} 46... Rb7
{[%clk 0:00:17]} 47. Ka4 {[%clk 0:01:27.8]} 47... Qa6# {[%clk 0:00:16.9]} 0-1

[Event "*** SCC Grand Prix: Titled Tuesday Blitz"]
[Site "Chess.com"]
[Date "2020.09.08"]
[Round "4"]
[White "krasavetc"]
[Black "ehrenfeld"]
[Result "1/2-1/2"]
[WhiteElo "2348"]
[BlackElo "2556"]
[TimeControl "180+1"]
[EndTime "10:39:00 PDT"]
[Termination "Game drawn by repetition"]

1. e4 {[%clk 0:03:00.9]} 1... e5 {[%clk 0:02:57.4]} 2. Nf3 {[%clk 0:02:58.9]}
2... Nc6 {[%clk 0:02:57.4]} 3. Bc4 {[%clk 0:02:57.8]} 3... Nf6 {[%clk
0:02:56.5]} 4. d4 {[%clk 0:02:57.5]} 4... exd4 {[%clk 0:02:56.1]} 5. O-O {[%clk
0:02:55.8]} 5... Nxe4 {[%clk 0:02:55.4]} 6. Nxd4 {[%clk 0:02:48.1]} 6... d5
{[%clk 0:02:44.5]} 7. Bb5 {[%clk 0:02:46.8]} 7... Bd7 {[%clk 0:02:36.2]} 8. c4
{[%clk 0:02:40.3]} 8... Bc5 {[%clk 0:02:00.4]} 9. Be3 {[%clk 0:02:16.3]} 9...
Bxd4 {[%clk 0:01:19.9]} 10. Bxd4 {[%clk 0:02:12.9]} 10... O-O {[%clk 0:01:19.9]}
11. cxd5 {[%clk 0:02:08.6]} 11... Nxd4 {[%clk 0:01:19.6]} 12. Bxd7 {[%clk
0:02:09]} 12... Qf6 {[%clk 0:01:08.1]} 13. Nc3 {[%clk 0:01:46.3]} 13... Nxc3
{[%clk 0:00:50.2]} 14. bxc3 {[%clk 0:01:43.6]} 14... Rad8 {[%clk 0:00:49.4]} 15.
Bh3 {[%clk 0:01:35.3]} 15... Nb5 {[%clk 0:00:44.4]} 16. c4 {[%clk 0:01:31.4]}
16... Nd6 {[%clk 0:00:42.3]} 17. Qb3 {[%clk 0:01:30]} 17... b6 {[%clk
0:00:42.2]} 18. Rad1 {[%clk 0:01:28.2]} 18... Ne4 {[%clk 0:00:39.9]} 19. Qa3
{[%clk 0:01:19.1]} 19... a5 {[%clk 0:00:38.7]} 20. Bg4 {[%clk 0:01:13.2]} 20...
Nc5 {[%clk 0:00:38.5]} 21. Bf3 {[%clk 0:01:12.5]} 21... Rfe8 {[%clk 0:00:37.8]}
22. Rfe1 {[%clk 0:01:10.5]} 22... g6 {[%clk 0:00:37.9]} 23. h3 {[%clk
0:01:09.3]} 23... h5 {[%clk 0:00:37.3]} 24. Qc1 {[%clk 0:01:01.5]} 24... h4
{[%clk 0:00:37.2]} 25. Qh6 {[%clk 0:00:58.5]} 25... a4 {[%clk 0:00:31.1]} 26.
Re3 {[%clk 0:00:47.9]} 26... Rxe3 {[%clk 0:00:29.9]} 27. Qxe3 {[%clk 0:00:47.5]}
27... Kg7 {[%clk 0:00:28.3]} 28. Re1 {[%clk 0:00:45.1]} 28... Rd7 {[%clk
0:00:25.3]} 29. Qe8 {[%clk 0:00:42.8]} 29... Qd8 {[%clk 0:00:23.2]} 30. Qe5+
{[%clk 0:00:40.6]} 30... Qf6 {[%clk 0:00:22.9]} 31. Qe8 {[%clk 0:00:41]} 31...
Qd8 {[%clk 0:00:22.8]} 32. Qe5+ {[%clk 0:00:40.2]} 32... Qf6 {[%clk 0:00:22.8]}
33. Qe8 {[%clk 0:00:37.9]} 1/2-1/2

[Event "*** SCC Grand Prix: Titled Tuesday Blitz"]
[Site "Chess.com"]
[Date "2020.09.08"]
[Round "4"]
[White "Misticpikachu"]
[Black "sodastream007"]
[Result "0-1"]
[WhiteElo "2266"]
[BlackElo "2549"]
[TimeControl "180+1"]
[EndTime "10:39:01 PDT"]
[Termination "sodastream007 won by checkmate"]

1. c4 {[%clk 0:02:22]} 1... Nf6 {[%clk 0:02:59.3]} 2. Nc3 {[%clk 0:02:21]} 2...
c6 {[%clk 0:02:59.4]} 3. Nf3 {[%clk 0:02:19.9]} 3... d5 {[%clk 0:02:59.3]} 4. e3
{[%clk 0:02:20.3]} 4... e6 {[%clk 0:02:56.5]} 5. b3 {[%clk 0:02:19.9]} 5... Bd6
{[%clk 0:02:56]} 6. Bb2 {[%clk 0:02:20.1]} 6... e5 {[%clk 0:02:55.6]} 7. cxd5
{[%clk 0:02:19.7]} 7... cxd5 {[%clk 0:02:52.1]} 8. Nb5 {[%clk 0:02:19.9]} 8...
Nc6 {[%clk 0:02:52]} 9. Nxd6+ {[%clk 0:02:07.4]} 9... Qxd6 {[%clk 0:02:52.9]}
10. Bb5 {[%clk 0:02:05.8]} 10... e4 {[%clk 0:02:53.3]} 11. Ne5 {[%clk
0:02:00.2]} 11... h5 {[%clk 0:02:46.9]} 12. Rc1 {[%clk 0:01:38]} 12... Bd7
{[%clk 0:02:45.4]} 13. Nxd7 {[%clk 0:01:37.3]} 13... Nxd7 {[%clk 0:02:40.6]} 14.
Qc2 {[%clk 0:01:19.8]} 14... Rc8 {[%clk 0:02:37.1]} 15. O-O {[%clk 0:01:17.8]}
15... a6 {[%clk 0:02:34.8]} 16. Bxc6 {[%clk 0:01:16.3]} 16... Rxc6 {[%clk
0:02:32.9]} 17. Qb1 {[%clk 0:01:16.8]} 17... Qg6 {[%clk 0:02:24.9]} 18. Rxc6
{[%clk 0:01:15.9]} 18... bxc6 {[%clk 0:02:25.8]} 19. Rc1 {[%clk 0:01:12.7]}
19... h4 {[%clk 0:02:23.1]} 20. Qc2 {[%clk 0:01:12.5]} 20... Rh6 {[%clk
0:02:20.8]} 21. Qc3 {[%clk 0:01:06.5]} 21... h3 {[%clk 0:02:15.6]} 22. g3 {[%clk
0:00:50.7]} 22... Qh5 {[%clk 0:02:11.6]} 23. Qxg7 {[%clk 0:00:25]} 23... Qf3
{[%clk 0:02:10.5]} 24. Qg8+ {[%clk 0:00:25]} 24... Nf8 {[%clk 0:02:04.9]} 25.
Kf1 {[%clk 0:00:21.9]} 25... d4 {[%clk 0:02:03.4]} 26. Bxd4 {[%clk 0:00:12.9]}
26... Qh1+ {[%clk 0:01:56.9]} 27. Ke2 {[%clk 0:00:13.2]} 27... Qxc1 {[%clk
0:01:57.8]} 28. Bg7 {[%clk 0:00:09]} 28... Qc5 {[%clk 0:01:53.7]} 29. Bxh6
{[%clk 0:00:07.1]} 29... Qh5+ {[%clk 0:01:53.4]} 30. Ke1 {[%clk 0:00:03.9]}
30... Qxh6 {[%clk 0:01:49.8]} 31. Qg4 {[%clk 0:00:04.8]} 31... Qe6 {[%clk
0:01:46.7]} 32. Qf4 {[%clk 0:00:02.4]} 32... Nd7 {[%clk 0:01:43.2]} 33. Qc7
{[%clk 0:00:02.7]} 33... Qd5 {[%clk 0:01:41.5]} 34. Qc8+ {[%clk 0:00:02.7]}
34... Ke7 {[%clk 0:01:41.5]} 35. Qh8 {[%clk 0:00:03]} 35... Ne5 {[%clk
0:01:40.1]} 36. Qxh3 {[%clk 0:00:01.4]} 36... Nf3+ {[%clk 0:01:39.5]} 37. Kf1
{[%clk 0:00:01.8]} 37... Qxd2 {[%clk 0:01:34.4]} 38. Qf5 {[%clk 0:00:01.9]}
38... Qc1+ {[%clk 0:01:32.9]} 39. Kg2 {[%clk 0:00:02.3]} 39... Qg1+ {[%clk
0:01:30]} 40. Kh3 {[%clk 0:00:02.8]} 40... Qxh2+ {[%clk 0:01:29.4]} 41. Kg4
{[%clk 0:00:03.3]} 41... f6 {[%clk 0:01:28.9]} 42. Qxe4+ {[%clk 0:00:03.4]}
42... Ne5+ {[%clk 0:01:27.3]} 43. Kf4 {[%clk 0:00:03.8]} 43... Qxf2+ {[%clk
0:01:27.2]} 44. Qf3 {[%clk 0:00:02.2]} 44... Qxf3# {[%clk 0:01:27.6]} 0-1

[Event "*** SCC Grand Prix: Titled Tuesday Blitz"]
[Site "Chess.com"]
[Date "2020.09.08"]
[Round "4"]
[White "Yaacovn"]
[Black "chito89"]
[Result "1-0"]
[WhiteElo "2919"]
[BlackElo "2731"]
[TimeControl "180+1"]
[EndTime "10:39:04 PDT"]
[Termination "Yaacovn won on time"]

1. d4 {[%clk 0:03:00.9]} 1... g6 {[%clk 0:02:54.4]} 2. Nf3 {[%clk 0:03:00.4]}
2... Bg7 {[%clk 0:02:54.7]} 3. e3 {[%clk 0:03:01.1]} 3... d6 {[%clk 0:02:53.8]}
4. Bc4 {[%clk 0:03:00.7]} 4... Nf6 {[%clk 0:02:52.6]} 5. O-O {[%clk 0:03:00.9]}
5... O-O {[%clk 0:02:52.7]} 6. b3 {[%clk 0:03:01.5]} 6... Nc6 {[%clk 0:02:47.1]}
7. Bb2 {[%clk 0:03:01.6]} 7... e5 {[%clk 0:02:31.5]} 8. dxe5 {[%clk 0:03:01.5]}
8... Ng4 {[%clk 0:02:31.8]} 9. Be2 {[%clk 0:02:57.5]} 9... Ngxe5 {[%clk
0:02:31.7]} 10. Nxe5 {[%clk 0:02:57.7]} 10... Nxe5 {[%clk 0:02:31.7]} 11. Qc1
{[%clk 0:02:58]} 11... a5 {[%clk 0:02:27]} 12. c4 {[%clk 0:02:56.8]} 12... a4
{[%clk 0:02:26.6]} 13. Nc3 {[%clk 0:02:57.2]} 13... Bd7 {[%clk 0:02:11.8]} 14.
Nd5 {[%clk 0:02:48.5]} 14... Bc6 {[%clk 0:01:54.3]} 15. Bc3 {[%clk 0:02:43]}
15... Bxd5 {[%clk 0:01:35]} 16. cxd5 {[%clk 0:02:42.7]} 16... f5 {[%clk
0:01:20.1]} 17. Qd2 {[%clk 0:02:39.2]} 17... axb3 {[%clk 0:01:11.5]} 18. axb3
{[%clk 0:02:40.1]} 18... Qe7 {[%clk 0:01:11.7]} 19. h3 {[%clk 0:02:37.2]} 19...
g5 {[%clk 0:01:05.6]} 20. Rxa8 {[%clk 0:02:27.3]} 20... Rxa8 {[%clk 0:01:06.5]}
21. Ra1 {[%clk 0:02:27.2]} 21... Rxa1+ {[%clk 0:00:51.3]} 22. Bxa1 {[%clk
0:02:28.1]} 22... Nf3+ {[%clk 0:00:51.6]} 23. Bxf3 {[%clk 0:02:09.8]} 23... Bxa1
{[%clk 0:00:52.5]} 24. Qc2 {[%clk 0:02:07.7]} 24... Qf7 {[%clk 0:00:49.5]} 25.
Be2 {[%clk 0:02:03.8]} 25... Be5 {[%clk 0:00:34.1]} 26. Bd3 {[%clk 0:01:53.5]}
26... f4 {[%clk 0:00:34]} 27. Bf5 {[%clk 0:01:53.7]} 27... Qxd5 {[%clk
0:00:21.6]} 28. Bxh7+ {[%clk 0:01:50.6]} 28... Kf8 {[%clk 0:00:21.6]} 29. Be4
{[%clk 0:01:30.7]} 29... Qa5 {[%clk 0:00:21.6]} 30. exf4 {[%clk 0:01:25.9]}
30... Qe1+ {[%clk 0:00:18.3]} 31. Kh2 {[%clk 0:01:26]} 31... gxf4 {[%clk
0:00:18.8]} 32. Bf3 {[%clk 0:01:26]} 32... c6 {[%clk 0:00:13.1]} 33. h4 {[%clk
0:01:24.9]} 33... Kg7 {[%clk 0:00:10.8]} 34. h5 {[%clk 0:01:23.5]} 34... Kh8
{[%clk 0:00:07.6]} 35. h6 {[%clk 0:01:13]} 35... Qc3 {[%clk 0:00:03.7]} 36. Qg6
{[%clk 0:01:11]} 36... Qd4 {[%clk 0:00:03.1]} 37. Be4 {[%clk 0:01:07.6]} 37...
f3+ {[%clk 0:00:03]} 38. Kh3 {[%clk 0:01:08.1]} 1-0

[Event "*** SCC Grand Prix: Titled Tuesday Blitz"]
[Site "Chess.com"]
[Date "2020.09.08"]
[Round "4"]
[White "glebus008"]
[Black "kayrakamer"]
[Result "0-1"]
[WhiteElo "2165"]
[BlackElo "2601"]
[TimeControl "180+1"]
[EndTime "10:39:04 PDT"]
[Termination "kayrakamer won by checkmate"]

1. e4 {[%clk 0:03:00.9]} 1... c5 {[%clk 0:03:00]} 2. Nf3 {[%clk 0:02:58.9]} 2...
e6 {[%clk 0:03:00.5]} 3. g3 {[%clk 0:02:57.1]} 3... d5 {[%clk 0:02:53.5]} 4.
exd5 {[%clk 0:02:48.5]} 4... exd5 {[%clk 0:02:54.4]} 5. d4 {[%clk 0:02:49.2]}
5... Nc6 {[%clk 0:02:47.2]} 6. Bg2 {[%clk 0:02:44.4]} 6... Nf6 {[%clk
0:02:45.3]} 7. O-O {[%clk 0:02:42.5]} 7... Be7 {[%clk 0:02:34.4]} 8. dxc5 {[%clk
0:02:41.6]} 8... O-O {[%clk 0:02:34.3]} 9. a3 {[%clk 0:02:42.3]} 9... Bxc5
{[%clk 0:02:33]} 10. b4 {[%clk 0:02:41.9]} 10... Bb6 {[%clk 0:02:32.3]} 11. Bb2
{[%clk 0:02:41.5]} 11... Bg4 {[%clk 0:02:30.9]} 12. Qd3 {[%clk 0:02:37.1]} 12...
Ne4 {[%clk 0:02:26.1]} 13. Nc3 {[%clk 0:02:31.7]} 13... Bxf3 {[%clk 0:02:08.4]}
14. Qxf3 {[%clk 0:02:07.4]} 14... Nd2 {[%clk 0:02:07.6]} 15. Qg4 {[%clk
0:01:58.5]} 15... Ne5 {[%clk 0:02:02.3]} 16. Qe2 {[%clk 0:01:53.7]} 16... Nxf1
{[%clk 0:01:42.9]} 17. Qxe5 {[%clk 0:01:52.6]} 17... Nd2 {[%clk 0:01:43]} 18.
Ne4 {[%clk 0:01:43.7]} 18... f6 {[%clk 0:01:06]} 19. Qe6+ {[%clk 0:01:42.8]}
19... Kh8 {[%clk 0:01:06.3]} 20. Nxd2 {[%clk 0:01:42.4]} 20... Re8 {[%clk
0:00:59.1]} 21. Qxd5 {[%clk 0:01:32]} 21... Re2 {[%clk 0:00:52]} 22. Qxd8+
{[%clk 0:01:29.1]} 22... Rxd8 {[%clk 0:00:51.6]} 23. Ne4 {[%clk 0:01:26.7]}
23... Rxc2 {[%clk 0:00:44.1]} 24. Rb1 {[%clk 0:01:19.7]} 24... f5 {[%clk
0:00:39.6]} 25. Ng5 {[%clk 0:01:18.3]} 25... Rdd2 {[%clk 0:00:38.6]} 26. Be5
{[%clk 0:00:36.6]} 26... Rxf2 {[%clk 0:00:27.6]} 27. Nf7+ {[%clk 0:00:35]} 27...
Kg8 {[%clk 0:00:26.5]} 28. Bd5 {[%clk 0:00:33.8]} 28... Rg2+ {[%clk 0:00:21.5]}
29. Kf1 {[%clk 0:00:32.3]} 29... Rcf2+ {[%clk 0:00:21.7]} 30. Ke1 {[%clk
0:00:31.8]} 30... Rg1# {[%clk 0:00:22.6]} 0-1

[Event "*** SCC Grand Prix: Titled Tuesday Blitz"]
[Site "Chess.com"]
[Date "2020.09.08"]
[Round "4"]
[White "skeyman"]
[Black "KetiGrant"]
[Result "1-0"]
[WhiteElo "2120"]
[BlackElo "2336"]
[TimeControl "180+1"]
[EndTime "10:39:07 PDT"]
[Termination "skeyman won on time"]

1. Nf3 {[%clk 0:03:00.9]} 1... Nf6 {[%clk 0:02:59.1]} 2. c4 {[%clk 0:03:00.5]}
2... g6 {[%clk 0:02:59.4]} 3. Nc3 {[%clk 0:03:00]} 3... Bg7 {[%clk 0:03:00.3]}
4. e3 {[%clk 0:02:59.6]} 4... d6 {[%clk 0:03:01.2]} 5. Qc2 {[%clk 0:02:57.6]}
5... O-O {[%clk 0:02:59.3]} 6. b3 {[%clk 0:02:58]} 6... e5 {[%clk 0:02:55.9]} 7.
Bb2 {[%clk 0:02:58.9]} 7... Bg4 {[%clk 0:02:52.4]} 8. h3 {[%clk 0:02:57.9]} 8...
Bxf3 {[%clk 0:02:51.4]} 9. gxf3 {[%clk 0:02:58.8]} 9... Nc6 {[%clk 0:02:51.7]}
10. a3 {[%clk 0:02:58.3]} 10... d5 {[%clk 0:02:47.5]} 11. cxd5 {[%clk
0:02:57.9]} 11... Nxd5 {[%clk 0:02:46.7]} 12. Ne4 {[%clk 0:02:58]} 12... Qd6
{[%clk 0:02:46.9]} 13. h4 {[%clk 0:02:57.7]} 13... Qe7 {[%clk 0:02:42.4]} 14.
Bc4 {[%clk 0:02:55]} 14... Rad8 {[%clk 0:02:40.7]} 15. h5 {[%clk 0:02:53.8]}
15... Na5 {[%clk 0:02:19.8]} 16. Be2 {[%clk 0:02:50]} 16... f5 {[%clk
0:02:12.1]} 17. Ng3 {[%clk 0:02:49.2]} 17... a6 {[%clk 0:01:42]} 18. b4 {[%clk
0:02:46.9]} 18... Nc6 {[%clk 0:01:39.8]} 19. hxg6 {[%clk 0:02:47.8]} 19... hxg6
{[%clk 0:01:39.1]} 20. Bc4 {[%clk 0:02:46.8]} 20... b5 {[%clk 0:01:29.7]} 21.
Bb3 {[%clk 0:02:45.9]} 21... Nb8 {[%clk 0:00:55.9]} 22. e4 {[%clk 0:02:44]}
22... c6 {[%clk 0:00:55.3]} 23. exd5 {[%clk 0:02:44.1]} 23... cxd5 {[%clk
0:00:56.2]} 24. d3 {[%clk 0:02:34.6]} 24... Rd6 {[%clk 0:00:55.1]} 25. Qd2
{[%clk 0:02:34.4]} 25... Nd7 {[%clk 0:00:53.4]} 26. O-O-O {[%clk 0:02:33.4]}
26... Nb6 {[%clk 0:00:49.5]} 27. Kb1 {[%clk 0:02:33.5]} 27... Na4 {[%clk
0:00:46.6]} 28. Ba1 {[%clk 0:02:19.6]} 28... Rc8 {[%clk 0:00:43.4]} 29. Rc1
{[%clk 0:02:18.9]} 29... Rcd8 {[%clk 0:00:37.9]} 30. Rhe1 {[%clk 0:02:03.4]}
30... Bf6 {[%clk 0:00:32]} 31. f4 {[%clk 0:01:58]} 31... Re6 {[%clk 0:00:18.9]}
32. fxe5 {[%clk 0:01:55.7]} 32... Bxe5 {[%clk 0:00:18.8]} 33. f4 {[%clk
0:01:46.3]} 33... Bxa1 {[%clk 0:00:11.8]} 34. Kxa1 {[%clk 0:01:46.2]} 34... Qf6+
{[%clk 0:00:10.8]} 35. Ka2 {[%clk 0:01:45.9]} 35... Rxe1 {[%clk 0:00:09.9]} 36.
Rxe1 {[%clk 0:01:45.7]} 36... Nc3+ {[%clk 0:00:09.2]} 37. Ka1 {[%clk 0:01:40.8]}
37... Ne4+ {[%clk 0:00:09.4]} 38. Qb2 {[%clk 0:01:39.7]} 38... Qxb2+ {[%clk
0:00:09.2]} 39. Kxb2 {[%clk 0:01:38.5]} 39... Nxg3 {[%clk 0:00:10.1]} 40. Re6
{[%clk 0:01:38.2]} 40... Kg7 {[%clk 0:00:07]} 41. Rxa6 {[%clk 0:01:38]} 41...
Ne2 {[%clk 0:00:06.2]} 42. Rb6 {[%clk 0:01:34]} 42... Nxf4 {[%clk 0:00:05.6]}
43. Rxb5 {[%clk 0:01:34.1]} 43... Nxd3+ {[%clk 0:00:05]} 44. Kc3 {[%clk
0:01:33.1]} 44... Nf4 {[%clk 0:00:01.1]} 45. Kd4 {[%clk 0:01:27.6]} 1-0

[Event "*** SCC Grand Prix: Titled Tuesday Blitz"]
[Site "Chess.com"]
[Date "2020.09.08"]
[Round "4"]
[White "MFguimaraes"]
[Black "MikeSailer"]
[Result "1-0"]
[WhiteElo "2404"]
[BlackElo "2116"]
[TimeControl "180+1"]
[EndTime "10:39:10 PDT"]
[Termination "MFguimaraes won by resignation"]

1. d4 {[%clk 0:03:00.9]} 1... d5 {[%clk 0:02:59.8]} 2. Nf3 {[%clk 0:03:00.2]}
2... Bf5 {[%clk 0:03:00.2]} 3. c4 {[%clk 0:02:54.8]} 3... e6 {[%clk 0:02:59.6]}
4. Nc3 {[%clk 0:02:51.2]} 4... Nc6 {[%clk 0:02:57.9]} 5. cxd5 {[%clk 0:02:49.9]}
5... exd5 {[%clk 0:02:57.8]} 6. e3 {[%clk 0:02:50.2]} 6... Nb4 {[%clk
0:02:55.3]} 7. e4 {[%clk 0:02:41.3]} 7... dxe4 {[%clk 0:02:55.1]} 8. Ne5 {[%clk
0:02:37.5]} 8... e3 {[%clk 0:02:51.1]} 9. Bb5+ {[%clk 0:02:28.8]} 9... c6 {[%clk
0:02:49.7]} 10. Qf3 {[%clk 0:02:26]} 10... Nc2+ {[%clk 0:02:28.4]} 11. Kf1
{[%clk 0:02:25.4]} 11... Nxd4 {[%clk 0:02:24.4]} 12. Qxe3 {[%clk 0:02:24.8]}
12... Be7 {[%clk 0:01:44.3]} 13. Bc4 {[%clk 0:02:22.4]} 13... Nc2 {[%clk
0:01:32.1]} 14. Bxf7+ {[%clk 0:02:08.8]} 14... Kf8 {[%clk 0:01:29.4]} 15. Qf3
{[%clk 0:02:07.9]} 15... Nxa1 {[%clk 0:00:59.2]} 16. Qxf5 {[%clk 0:01:52.2]}
16... Nf6 {[%clk 0:00:59.8]} 17. Be6 {[%clk 0:01:40.7]} 17... Qd4 {[%clk
0:00:18.1]} 18. Be3 {[%clk 0:01:35.4]} 18... Qb4 {[%clk 0:00:15.4]} 19. Qb1
{[%clk 0:01:22.1]} 19... Rd8 {[%clk 0:00:06.9]} 20. Qxa1 {[%clk 0:01:21.1]}
20... Ne4 {[%clk 0:00:05.5]} 21. Nd7+ {[%clk 0:01:13.1]} 21... Rxd7 {[%clk
0:00:05.6]} 22. Bxd7 {[%clk 0:01:12.9]} 22... Qc4+ {[%clk 0:00:05.5]} 23. Kg1
{[%clk 0:01:12.7]} 23... Qd3 {[%clk 0:00:04.2]} 24. Qd1 {[%clk 0:01:10.7]} 24...
Qc4 {[%clk 0:00:03.3]} 25. Nxe4 {[%clk 0:01:05.9]} 25... Qxe4 {[%clk 0:00:03.3]}
26. Qf3+ {[%clk 0:01:06.3]} 26... Qxf3 {[%clk 0:00:02.9]} 27. gxf3 {[%clk
0:01:07.2]} 27... Kf7 {[%clk 0:00:01.8]} 28. Kg2 {[%clk 0:01:07.4]} 28... Rd8
{[%clk 0:00:02.2]} 29. Bf5 {[%clk 0:01:07.1]} 29... Bf6 {[%clk 0:00:02.3]} 30.
b3 {[%clk 0:01:06.3]} 30... g6 {[%clk 0:00:02.7]} 31. Be4 {[%clk 0:01:05.8]}
31... Re8 {[%clk 0:00:02.2]} 32. Rd1 {[%clk 0:01:03.7]} 32... Re7 {[%clk
0:00:02.7]} 33. Bxa7 {[%clk 0:01:03.2]} 33... b5 {[%clk 0:00:02.7]} 34. Bc5
{[%clk 0:01:02.8]} 34... Be5 {[%clk 0:00:02]} 35. Bxe7 {[%clk 0:01:02]} 1-0

[Event "*** SCC Grand Prix: Titled Tuesday Blitz"]
[Site "Chess.com"]
[Date "2020.09.08"]
[Round "4"]
[White "Happy1712Drummer"]
[Black "beto-betun"]
[Result "1-0"]
[WhiteElo "2408"]
[BlackElo "2126"]
[TimeControl "180+1"]
[EndTime "10:39:13 PDT"]
[Termination "Happy1712Drummer won on time"]

1. Nf3 {[%clk 0:03:00.9]} 1... Nf6 {[%clk 0:02:56]} 2. c4 {[%clk 0:03:01.8]}
2... g6 {[%clk 0:02:54]} 3. Nc3 {[%clk 0:03:01.7]} 3... Bg7 {[%clk 0:02:54.5]}
4. e4 {[%clk 0:03:02.1]} 4... d6 {[%clk 0:02:54.2]} 5. d4 {[%clk 0:03:02.6]}
5... O-O {[%clk 0:02:49.8]} 6. Be2 {[%clk 0:03:02.1]} 6... e5 {[%clk 0:02:45.3]}
7. d5 {[%clk 0:03:01.4]} 7... Nbd7 {[%clk 0:02:42.7]} 8. Bg5 {[%clk 0:02:54]}
8... a5 {[%clk 0:02:37.2]} 9. Nd2 {[%clk 0:02:48.4]} 9... Nc5 {[%clk 0:02:24.2]}
10. h4 {[%clk 0:02:44.9]} 10... h6 {[%clk 0:02:21.2]} 11. Be3 {[%clk 0:02:43.3]}
11... b6 {[%clk 0:02:14.6]} 12. g4 {[%clk 0:02:38.2]} 12... Nh7 {[%clk 0:02:06]}
13. h5 {[%clk 0:02:35.2]} 13... g5 {[%clk 0:02:04.8]} 14. Nf1 {[%clk 0:02:18.8]}
14... Nf6 {[%clk 0:01:34.9]} 15. Ng3 {[%clk 0:02:15.1]} 15... Bd7 {[%clk
0:01:21.8]} 16. Bxc5 {[%clk 0:02:11.2]} 16... bxc5 {[%clk 0:01:21.2]} 17. Qc2
{[%clk 0:02:10.2]} 17... Qc8 {[%clk 0:01:15.8]} 18. f3 {[%clk 0:02:08.2]} 18...
Rb8 {[%clk 0:01:13.9]} 19. Nd1 {[%clk 0:01:54.4]} 19... Nxg4 {[%clk 0:01:06.5]}
20. fxg4 {[%clk 0:01:50]} 20... Bxg4 {[%clk 0:01:07.4]} 21. Ne3 {[%clk
0:01:47.1]} 21... Bxe2 {[%clk 0:00:49.5]} 22. Qxe2 {[%clk 0:01:48]} 22... Qb7
{[%clk 0:00:47.5]} 23. Rb1 {[%clk 0:01:29.4]} 23... a4 {[%clk 0:00:44.8]} 24.
O-O {[%clk 0:01:25.1]} 24... Qc8 {[%clk 0:00:29.9]} 25. Ngf5 {[%clk 0:01:22.8]}
25... Kh7 {[%clk 0:00:25.2]} 26. Rf2 {[%clk 0:01:20.2]} 26... a3 {[%clk
0:00:23.6]} 27. b3 {[%clk 0:01:19.5]} 27... Qd7 {[%clk 0:00:18.6]} 28. Rbf1
{[%clk 0:01:19.7]} 28... f6 {[%clk 0:00:16.7]} 29. Qg4 {[%clk 0:01:19]} 29...
Qf7 {[%clk 0:00:14.6]} 30. Ng3 {[%clk 0:01:14.2]} 30... Rbd8 {[%clk 0:00:13]}
31. Qf5+ {[%clk 0:01:08.2]} 31... Kg8 {[%clk 0:00:12.3]} 32. Ng4 {[%clk
0:01:08.3]} 32... Rd7 {[%clk 0:00:09.7]} 33. Qg6 {[%clk 0:01:07.1]} 33... Qxg6
{[%clk 0:00:09.3]} 34. hxg6 {[%clk 0:01:08]} 34... Kh8 {[%clk 0:00:05.2]} 35.
Nh5 {[%clk 0:01:07.8]} 35... Re7 {[%clk 0:00:03.3]} 36. Ngxf6 {[%clk 0:00:54.7]}
36... Bxf6 {[%clk 0:00:01.9]} 37. Rxf6 {[%clk 0:00:55.6]} 1-0